Cogmind - Beta 9.6 *** ADVENTURER MODE // 2020.04.24 @ 22:47:40 Player: BinarySpace Result: Destroyed by P-80 Master with Gamma Rifle Performance ------------- Evolutions (7) 3500 Regions Visited (15) 3000 Robots Destroyed (147) 735 Value Destroyed (5749) 5749 Prototype IDs (28) 560 Alien Tech Used (0) 0 Bonus (420) 420 TOTAL SCORE: 13964 Bonus ------- High Alert Combat Kills 46 Follower Combat Kills 74 Met Data Miner 300 Cogmind --------- Core Integrity 0/1300 Matter 300/300 Energy 140/150 System Corruption 6% Temperature Cool (0) Movement Hovering (116) Ox1 Location -3/Armory Parts ------- > --- POWER (1) -------- Light Angular Momentum Engine > --- PROPULSION (4) --- Improved Antigrav System Improved Antigrav System > --- UTILITY (12) ----- High-capacity Storage Unit Enhanced Optical Array Advanced Signal Interpreter Improved Terrain Scan Processor Improved Melee Analysis Suite > --- WEAPON (4) ------- Force Lance > --- INVENTORY (12) --- Cooled Ion Engine Improved Antigrav System Improved Antigrav System Improved Remote Force Field Peak State ------------ > --- POWER ------------ Light Particle Reactor > --- PROPULSION ------- Combat Airjet Combat Airjet Combat Airjet Combat Airjet > --- UTILITY ---------- Advanced Coolant Injector Large Storage Unit High-capacity Storage Unit Enhanced Optical Array Advanced Signal Interpreter Improved Terrain Scan Processor Improved Melee Analysis Suite Improved Melee Analysis Suite Advanced Target Analyzer Experimental Thermal Shield Hacking Suite Hacking Suite > --- WEAPON ----------- Tesla Rifle Force Lance Enhanced Force Lance > --- INVENTORY -------- Cooled Ion Engine Light Angular Momentum Engine Light Particle Reactor Combat Airjet Combat Airjet Gyrokinetic Inverter Improved Antigrav System Improved Antigrav System Improved Antigrav System Improved Antigrav System Advanced Signal Interpreter Improved Particle Charger High-powered Shock Rifle Heavy Missile Launcher Power Sword Force Lance [Rating: 106] Favorites ----------- Power Cooled Ion Engine Engine Cooled Ion Engine Power Core Fission Core Reactor Light Particle Reactor Propulsion Combat Airjet Treads Light Treads Wheel Compact Wheel Hover Unit Combat Airjet Flight Unit Improved VTOL Module Utility Large Storage Unit Device Weapon Cycler Storage Large Storage Unit Processor Advanced Signal Interpreter Hackware Hacking Suite Protection Hardened Medium Armor Plating Weapon Enhanced Autogun Energy Gun Tesla Rifle Ballistic Gun Enhanced Autogun Ballistic Cannon Improved Light Cannon Launcher Heavy Missile Launcher Special Weapon Molecular Deconstructor Slashing Weapon Power Sword Piercing Weapon Enhanced Force Lance Build | -11 -10 -10 -10 -9 -8 -8 -7 -6 -6 -6 -5 -5 -4 -3 -3 ------- Run | Scr Mat Min Exi Min Mat Sto Fac Fac Low Dat Pro Fac Fac Res Arm Slots Evolved 14 | . . . . . 4 . 2 2 . . . 2 2 2 . Power . | . . . . . . . . . . . . . . . . Propulsion 2 | . . . . . . . . 2 . . . . . . . Utility 10 | . . . . . 4 . 2 . . . . 1 1 2 . Weapon 2 | . . . . . . . . . . . . 1 1 . . Parts Attached 134 | 6 6 1 . 1 28 13 11 18 2 . 2 4 5 15 22 Power 18 | 1 . . . . 3 2 1 . 1 . . . . 2 8 Engine 7 | 1 . . . . 1 2 1 . . . . . . 1 1 Core 4 | . . . . . 2 . . . 1 . . . . . 1 Reactor 7 | . . . . . . . . . . . . . . 1 6 Propulsion 36 | 2 . 1 . 1 5 6 3 6 . . . . . 2 10 Treads 11 | 1 . 1 . . 4 3 2 . . . . . . . . Leg . | . . . . . . . . . . . . . . . . Wheel 2 | 1 . . . 1 . . . . . . . . . . . Hover 20 | . . . . . 1 . 1 6 . . . . . 2 10 Flight 3 | . . . . . . 3 . . . . . . . . . Utility 36 | 1 4 . . . 7 3 3 6 . . . 2 2 7 1 Device 15 | . . . . . 5 3 1 3 . . . 1 1 1 . Storage 7 | 1 3 . . . 1 . 1 . . . . . . . 1 Processor 7 | . . . . . . . 1 1 . . . . . 5 . Hackware 3 | . . . . . . . . 1 . . . . 1 1 . Protection 4 | . 1 . . . 1 . . 1 . . . 1 . . . Artifact . | . . . . . . . . . . . . . . . . Weapon 44 | 2 2 . . . 13 2 4 6 1 . 2 2 3 4 3 Energy Gun 11 | . . . . . 2 1 1 3 . . 1 . 1 1 1 Energy Cannon . | . . . . . . . . . . . . . . . . Ballistic Gun 12 | 2 . . . . 6 1 2 . . . . . . 1 . Ballistic Cannon 6 | . 2 . . . 4 . . . . . . . . . . Launcher 6 | . . . . . 1 . . 1 1 . 1 . 2 . . Special Weapon 1 | . . . . . . . . . . . . 1 . . . Impact Weapon . | . . . . . . . . . . . . . . . . Slashing Weapon 5 | . . . . . . . 1 2 . . . 1 . . 1 Piercing Weapon 3 | . . . . . . . . . . . . . . 2 1 Special Melee Weapon . | . . . . . . . . . . . . . . . . Unidentified Prototypes 13 | . . . . . 6 4 1 . . . . 1 . 1 . Parts Lost 48 | . . . . 2 8 . 2 4 1 . . 3 3 4 21 Power 9 | . . . . 1 1 . . . 1 . . . . 1 5 Propulsion 9 | . . . . 1 2 . . . . . . . . . 6 Utility 16 | . . . . . 2 . 1 1 . . . 3 1 1 7 Weapon 14 | . . . . . 3 . 1 3 . . . . 2 2 3 Highest Loss Streak 13 | . . . . 2 2 . 1 2 1 . . 3 3 2 13 Average Slot Usage (%) 93 | . 99 100 100 86 91 99 96 95 97 100 100 83 67 89 71 Engine 6 | . 14 14 14 3 4 9 7 6 . . . . . . . Core 1 | . . . . . 2 . . . 5 6 6 5 5 1 . Treads 9 | . 14 14 14 14 10 17 12 . . . . . . . . Wheel 4 | . 14 14 14 11 5 . . . . . . . . . . Hover 6 | . . . . . . . . 24 26 26 26 23 21 19 13 Device 13 | . . . . . 19 18 23 20 20 20 20 14 1 4 6 Storage 21 | . 26 28 28 28 27 27 23 13 13 13 13 11 10 9 8 Processor 5 | . . . . . . . 7 6 13 13 13 11 10 23 27 Hackware 1 | . . . . . . . . 3 . . . . 1 9 6 Protection 3 | . 1 . . . 3 9 5 5 6 6 6 4 3 . . Energy Gun 1 | . . . . . . . . 4 . . 1 . 1 7 . Ballistic Gun 6 | . 1 . . . 12 17 13 4 . . . . . 1 . Ballistic Cannon 7 | . 26 28 28 28 4 . . . . . . . . . . Naked Turns . | . . . . . . . . . . . . . . . . Heaviest Build 89 | 12 61 61 61 61 88 88 89 83 75 75 75 74 80 87 79 Greatest Support 94 | 20 16 16 16 20 42 42 44 88 88 88 88 88 88 88 94 Greatest Overweight (x) 29 | . 3 3 3 3 5 29 4 1 . . . . . . 2 Average Overweight (x) 1 | . 2 3 3 2 3 2 2 . . . . . . . . Largest Inventory Capacity 24 | 6 18 18 18 18 24 24 24 24 18 18 18 18 18 18 18 Average Capacity 20 | 5 16 18 18 18 24 24 24 18 18 18 18 18 18 18 16 Most Carried 24 | 4 13 18 18 18 24 24 24 24 16 14 16 18 18 18 17 Average Carried 18 | 1 10 15 18 17 22 23 23 17 14 14 14 17 16 16 14 Final Capacity 24 | 6 18 18 18 18 24 24 24 18 18 18 18 18 18 18 12 Final Carried 24 | 4 13 18 18 18 24 24 23 16 14 14 16 17 17 16 4 Class Distribution -------------------- 46% | Hauler-Mutant 26% | Mutant 15% | Hacker-Mutant 11% | Infiltrator-Mutant Dominant Class ---------------- Mutant | -10/Materials Mutant | -10/Mines Mutant | -10/Exiles Mutant | -9/Mines Hauler-Mutant | -8/Materials Hauler-Mutant | -8/Storage Hauler-Mutant | -7/Factory Hacker-Mutant | -6/Factory Infiltrator-Mutant | -6/Lower Caves Infiltrator-Mutant | -6/Data Miner Infiltrator-Mutant | -5/Proximity Caves Infiltrator-Mutant | -5/Factory Hacker-Mutant | -4/Factory Hacker-Mutant | -3/Research Hacker-Mutant | -3/Armory Resources | -11 -10 -10 -10 -9 -8 -8 -7 -6 -6 -6 -5 -5 -4 -3 -3 ----------- Run | Scr Mat Min Exi Min Mat Sto Fac Fac Low Dat Pro Fac Fac Res Arm Matter Collected 3106 | 109 233 116 . 104 1187 292 230 76 103 . 50 . 99 347 160 Remotely . | . . . . . . . . . . . . . . . . Salvage Created 5764 | . 340 . . 72 1916 650 292 120 10 . . . 179 1377 808 Parts 323 | . 21 . . 5 111 28 13 12 3 . . . 11 73 46 Haulers Intercepted 3 | . 1 . . . 1 . . . . . . . . 1 . Recyclers Shooed 1 | . . . . . . 1 . . . . . . . . . Parts Field Recycled . | . . . . . . . . . . . . . . . . Retrieved Matter . | . . . . . . . . . . . . . . . . Parts Self-Destructed 6 | . . . . . . . . . . . 6 . . . . Prevented . | . . . . . . . . . . . . . . . . Kills | -11 -10 -10 -10 -9 -8 -8 -7 -6 -6 -6 -5 -5 -4 -3 -3 ------- Run | Scr Mat Min Exi Min Mat Sto Fac Fac Low Dat Pro Fac Fac Res Arm Combat Hostiles Destroyed 132 | . 12 . . 6 52 14 4 5 3 . . . 7 16 13 Melee 29 | . . . . . . . . . 1 . . . . 16 12 Guns 58 | . . . . . 37 14 4 2 . . . . . . 1 Cannons 33 | . 12 . . 6 15 . . . . . . . . . . AOE 11 | . . . . . . . . 3 2 . . . 6 . . Classes Destroyed 16 | . 5 . . 2 4 2 1 . . . . . . . 2 Worker 6 | . 1 . . . 1 . . 1 . . . . 1 2 . Builder 1 | . . . . . 1 . . . . . . . . . . Hauler 3 | . 1 . . . 1 . . . . . . . . 1 . Recycler 3 | . 1 . . . . 1 1 . . . . . . . . Operator 2 | . . . . . 1 . . . . . . . . 1 . Swarmer 37 | . 5 . . 3 15 3 . 3 3 . . . 5 . . Saboteur 2 | . . . . . . . . . . . . . . . 2 Grunt 51 | . 7 . . . 24 8 1 . . . . . 2 9 . Brawler 1 | . . . . . . 1 . . . . . . . . . Duelist 5 | . . . . . 3 . . . . . . . . . 2 Sentry 18 | . . . . . 10 1 1 . . . . . . 4 2 Demolisher 4 | . . . . 2 . . . . . . . . . . 2 Specialist 2 | . . . . . . . . . . . . . . . 2 Hunter 2 | . . . . . . 1 . . . . . . . . 1 Programmer 9 | . . . . . . . 2 2 . . . . . 3 2 Assembled 1 | . . . . 1 . . . . . . . . . . . Best Kill Streak 7 | . 3 . . 6 7 6 2 5 3 . . . 5 6 4 Combat Bots Only 6 | . 3 . . 6 6 6 1 4 3 . . . 5 6 4 Max Kills in Single Turn 3 | . 1 . . 1 2 2 1 3 1 . . . 3 1 1 Gunslinging 1 | . . . . . . 1 . . . . . . . . . Exploded 3 | . . . . . . . . 2 1 . . . 3 . . Melee 1 | . . . . . . . . . 1 . . . . 1 1 Uniques/NPCs Destroyed . | . . . . . . . . . . . . . . . . Combat | -11 -10 -10 -10 -9 -8 -8 -7 -6 -6 -6 -5 -5 -4 -3 -3 -------- Run | Scr Mat Min Exi Min Mat Sto Fac Fac Low Dat Pro Fac Fac Res Arm Damage Taken 8754 | . 308 . . 295 1676 644 318 485 299 . 42 486 583 487 3131 Core 2265 | . 89 . . 20 313 109 50 90 107 . . 76 100 84 1227 Absorbed by Shields . | . . . . . . . . . . . . . . . . Core Remaining (%) 75 | 100 . . . 56 . 23 92 . . . 76 92 91 . . Volleys Fired 288 | . 35 2 . 11 144 43 25 11 4 . . 1 7 2 3 Largest 3 | . 2 2 . 2 2 2 2 2 1 . . 1 2 3 1 Hottest 165 | . 78 78 . 78 86 50 80 124 39 . . . 46 165 60 Shots Fired 551 | . 70 4 . 22 287 86 39 20 4 . . 1 9 6 3 Gun 350 | . . . . . 198 86 39 18 . . . . . 6 3 Cannon 184 | . 70 4 . 22 88 . . . . . . . . . . Launcher 12 | . . . . . 1 . . 2 4 . . . 5 . . Special 5 | . . . . . . . . . . . . 1 4 . . Kinetic 510 | . 70 4 . 22 283 86 37 6 . . . . . 2 . Thermal 17 | . . . . . 3 . 2 12 . . . . . . . Explosive 12 | . . . . . 1 . . 2 4 . . . 5 . . Electromagnetic 7 | . . . . . . . . . . . . . . 4 3 Robot Hit Streak 38 | . 18 . . 6 38 23 21 16 . . . . 20 21 24 Robot Miss Streak 3 | . 3 . . 3 3 1 1 . . . . . . . . Penetration Max . | . . . . . . . . . . . . . . . . Secondary Targets 5 | . . . . . 2 3 . . . . . . . . . Max Gunslinging Chain 1 | . . . . . 1 1 . . . . . . . . . Shots Hit Robots 503 | . 47 . . 14 235 70 34 14 2 . . . 5 34 48 Core Hits 235 | . 17 . . 8 96 30 10 9 5 . . . 8 27 25 Critical Hits 25 | . 2 . . . 3 . 1 . . . . . . 12 7 Critical Kills 15 | . . . . . 2 . . . . . . . . 10 3 Critical Parts Destroyed 9 | . 2 . . . 1 . 1 . . . . . . 1 4 Melee Attacks 134 | . . . . . . . 4 9 3 . 1 17 5 47 48 Impact . | . . . . . . . . . . . . . . . . Slashing 41 | . . . . . . . 4 9 3 . 1 17 5 . 2 Piercing 93 | . . . . . . . . . . . . . . 47 46 Sneak Attacks 5 | . . . . . . . 1 . . . . . 1 3 . Combat Hostiles . | . . . . . . . . . . . . . . . . Follow-up Attacks 2 | . . . . . . . . . . . . . . 2 . Damage Inflicted 13256 | . 843 . . 299 4231 1159 753 524 693 . . . 835 1860 2059 Guns 4896 | . . . . . 2747 1159 633 268 . . . . . 30 59 Cannons 2574 | . 843 . . 299 1432 . . . . . . . . . . Explosions 1609 | . . . . . 32 . . 256 616 . . . 705 . . Melee 4145 | . . . . . . . 108 . 77 . . . 130 1830 2000 Ramming 32 | . . . . . 20 . 12 . . . . . . . . Kinetic 7130 | . 843 . . 299 4119 1159 595 115 . . . . . . . Thermal 251 | . . . . . 60 . 38 153 . . . . . . . Explosive 1609 | . . . . . 32 . . 256 616 . . . 705 . . Electromagnetic 89 | . . . . . . . . . . . . . . 30 59 Impact . | . . . . . . . . . . . . . . . . Slashing 378 | . . . . . . . 108 . 77 . . . 130 . 63 Piercing 3767 | . . . . . . . . . . . . . . 1830 1937 Highest Corruption 5 | . . . . . . 1 . 2 2 2 2 . . . 5 Average Corruption 1 | . . . . . . 1 . 1 2 2 2 . . . 4 Corruption Purged . | . . . . . . . . . . . . . . . . Effects 18 | . . . . . . 2 . 4 4 . 4 . . . 4 Message Errors 7 | . . . . . . 1 . 1 1 . 2 . . . 2 Heat Flow Errors 2 | . . . . . . . . 2 . . . . . . . Energy Discharges 6 | . . . . . . . . 1 2 . 1 . . . 2 Data Loss (minor) 1 | . . . . . . . . . . . 1 . . . . Targeting Errors 2 | . . . . . . 1 . . 1 . . . . . . Overload Shots . | . . . . . . . . . . . . . . . . Overflow Damage 190 | . 8 . . . 16 . . . 68 . . . 35 63 . Projectiles 24 | . 8 . . . 16 . . . . . . . . . . Explosions 103 | . . . . . . . . . 68 . . . 35 . . Melee 63 | . . . . . . . . . . . . . . 63 . Knockbacks 44 | . 15 . . 1 28 . . . . . . . . . . Impact . | . . . . . . . . . . . . . . . . Kinetic 36 | . 13 . . 1 22 . . . . . . . . . . Secondary 8 | . 2 . . . 6 . . . . . . . . . . Self-Inflicted Damage 61 | . . . . . . . . . . . . . 61 . . Shots 2 | . . . . . . . . . . . . . 2 . . Rammed 3 | . . . . . 1 1 1 . . . . . . . . Targets Rammed 3 | . . . . . 1 1 1 . . . . . . . . Kicked . | . . . . . . . . . . . . . . . . Crushed . | . . . . . . . . . . . . . . . . Highest Temperature 241 | . 133 36 . 42 196 174 90 241 . . . . . 51 . Average Temperature 50 | . 48 20 . 23 43 71 41 71 . . . . . 26 . Received Heat Transfer 2355 | . 108 . . . 837 261 93 159 42 . 9 246 159 189 252 Effects 4 | . . . . . . . . 4 . . . . . . . Interference 4 | . . . . . . . . 4 . . . . . . . Siege Activations . | . . . . . . . . . . . . . . . . Robots Corrupted . | . . . . . . . . . . . . . . . . Combat Hostiles . | . . . . . . . . . . . . . . . . Parts Fried . | . . . . . . . . . . . . . . . . Impact Corruptions 1 | . 1 . . . . . . . . . . . . . . Robots Melted . | . . . . . . . . . . . . . . . . Combat Hostiles . | . . . . . . . . . . . . . . . . Parts Melted 2 | . . . . . . . . 2 . . . . . . . Heat Transferred 444 | . . . . . 111 . 74 259 . . . . . . . Parts Sabotaged 8 | . . . . . . . . . . . . . . . 8 Parts Stolen . | . . . . . . . . . . . . . . . . Parts Stripped . | . . . . . . . . . . . . . . . . Power Chain Reactions . | . . . . . . . . . . . . . . . . Missiles Intercepted . | . . . . . . . . . . . . . . . . Alert | -11 -10 -10 -10 -9 -8 -8 -7 -6 -6 -6 -5 -5 -4 -3 -3 ------- Run | Scr Mat Min Exi Min Mat Sto Fac Fac Low Dat Pro Fac Fac Res Arm Peak Influence 469 | . 199 . . 90 469 166 82 163 . . . 29 216 308 370 Average Influence 119 | . 41 . . 59 241 86 18 78 . . . 17 116 102 291 Maximum Alert Level 2 | . . . . . 2 . . . . . . . 1 1 1 Low Security (%) 77 | 100 100 100 . 100 43 100 100 100 . . . 100 77 83 11 Level 1 17 | . . . . . 41 . . . . . . . 22 16 88 Level 2 4 | . . . . . 14 . . . . . . . . . . Level 3 . | . . . . . . . . . . . . . . . . Level 4 . | . . . . . . . . . . . . . . . . Level 5 . | . . . . . . . . . . . . . . . . High Security . | . . . . . . . . . . . . . . . . Max Security . | . . . . . . . . . . . . . . . . Squads Dispatched 27 | . 1 1 . . 6 6 4 4 . . . 1 1 2 1 Investigation 9 | . 1 1 . . 3 1 1 1 . . . 1 . . . Extermination 6 | . . . . . . . 2 2 . . . . . 1 1 Reinforcement 10 | . . . . . 3 3 1 1 . . . . 1 1 . Assault 2 | . . . . . . 2 . . . . . . . . . Garrison . | . . . . . . . . . . . . . . . . Intercept . | . . . . . . . . . . . . . . . . Construction Impeded 1 | . . . . . . . . . . . . . 1 . . Haulers Reinforced . | . . . . . . . . . . . . . . . . Stealth | -11 -10 -10 -10 -9 -8 -8 -7 -6 -6 -6 -5 -5 -4 -3 -3 --------- Run | Scr Mat Min Exi Min Mat Sto Fac Fac Low Dat Pro Fac Fac Res Arm Distress Signals 11 | . . . . . 8 1 . . . . . . . 1 1 Communications Jammed . | . . . . . . . . . . . . . . . . Distress Signals . | . . . . . . . . . . . . . . . . Times Spotted 282 | . 22 . . 18 90 27 9 27 14 . 5 12 7 25 26 Peak Tracking Total 12 | . 4 . . 12 10 8 2 5 5 . 4 8 6 7 11 Tactical Retreats 30 | . 4 . . 1 8 . . 5 7 . 2 1 . . 2 Traps | -11 -10 -10 -10 -9 -8 -8 -7 -6 -6 -6 -5 -5 -4 -3 -3 ------- Run | Scr Mat Min Exi Min Mat Sto Fac Fac Low Dat Pro Fac Fac Res Arm Traps Triggered 4 | . 1 . . . . 1 . 2 . . . . . . . Indirectly . | . . . . . . . . . . . . . . . . Trap Hack Attempts . | . . . . . . . . . . . . . . . . Triggered . | . . . . . . . . . . . . . . . . Disarmed . | . . . . . . . . . . . . . . . . Reprogrammed . | . . . . . . . . . . . . . . . . Reused . | . . . . . . . . . . . . . . . . Traps Extracted . | . . . . . . . . . . . . . . . . Installed . | . . . . . . . . . . . . . . . . Triggered . | . . . . . . . . . . . . . . . . Machines | -11 -10 -10 -10 -9 -8 -8 -7 -6 -6 -6 -5 -5 -4 -3 -3 ---------- Run | Scr Mat Min Exi Min Mat Sto Fac Fac Low Dat Pro Fac Fac Res Arm Machines Disabled 6 | . 1 . . . 1 1 . . . . 1 . 1 . 1 Max in Single Turn 1 | . 1 . . . 1 1 . . . . 1 . 1 . 1 Garrison Access 1 | . . . . . 1 . . . . . . . . . . Machines Sabotaged . | . . . . . . . . . . . . . . . . Garrisons Compromised . | . . . . . . . . . . . . . . . . Overloaded Fab Kills . | . . . . . . . . . . . . . . . . Fab Network Shutdowns . | . . . . . . . . . . . . . . . . Hacking | -11 -10 -10 -10 -9 -8 -8 -7 -6 -6 -6 -5 -5 -4 -3 -3 --------- Run | Scr Mat Min Exi Min Mat Sto Fac Fac Low Dat Pro Fac Fac Res Arm Machines Accessed 38 | . 7 1 1 . 11 4 2 3 . 4 . 1 . 3 1 Terminals 20 | . 6 . . . 8 4 . 1 . . . . . 1 . Fabricators 3 | . . . . . . . . 1 . . . . . 2 . Repair Stations 4 | . . . . . 1 . 1 . . . . 1 . . 1 Recycling Units 1 | . 1 . . . . . . . . . . . . . . Scanalyzers 3 | . . . . . 1 . 1 1 . . . . . . . Garrison Access 1 | . . . . . 1 . . . . . . . . . . Total Hacks 114 | . 17 1 1 . 31 10 5 5 . 30 . 6 . 6 2 Successful 79 | . 11 1 1 . 15 4 4 3 . 30 . 4 . 4 2 Failed 35 | . 6 . . . 16 6 1 2 . . . 2 . 2 . Catastrophic 4 | . . . . . 1 1 . 1 . . . . . 1 . Database Lockouts . | . . . . . . . . . . . . . . . . Manual 40 | . 16 . . . 15 4 . 1 . . 1 . . 3 . Terminals 44 | . 15 . . . 15 10 . 1 . . . . . 3 . Fabricators 6 | . . . . . . . . 3 . . . . . 3 . Repair Stations 15 | . . . . . 4 . 3 . . . . 6 . . 2 Recycling Units 2 | . 2 . . . . . . . . . . . . . . Scanalyzers 14 | . . . . . 11 . 2 1 . . . . . . . Garrison Access 1 | . . . . . 1 . . . . . . . . . . Terminal Hacks 48 | . 6 1 1 . 4 4 . . . 30 . . . 2 . Record 12 | . . . 1 . . . . . . 11 . . . . . Part Schematic 13 | . 2 . . . . . . . . 11 . . . . . Robot Schematic 5 | . . . . . . . . . . 5 . . . . . Prototype ID Bank 3 | . . . . . . . . . . 3 . . . . . Open Door 3 | . . 1 . . . 2 . . . . . . . . . Level Access Points 1 | . . . . . . . . . . . . . . 1 . Scanalyzer Index 1 | . . . . . 1 . . . . . . . . . . Unreport Threat 8 | . 3 . . . 3 1 . . . . . . . 1 . Recall Investigation 1 | . . . . . . 1 . . . . . . . . . Hauler Manifests 1 | . 1 . . . . . . . . . . . . . . Fabricator Hacks 4 | . . . . . . . . 3 . . . . . 1 . Load Schematic 1 | . . . . . . . . 1 . . . . . . . Build 3 | . . . . . . . . 2 . . . . . 1 . Repair Station Hacks 12 | . . . . . 4 . 2 . . . . 4 . . 2 Scan Component 6 | . . . . . 2 . 1 . . . . 2 . . 1 Repair 6 | . . . . . 2 . 1 . . . . 2 . . 1 Recycling Unit Hacks 2 | . 2 . . . . . . . . . . . . . . Process 1 | . 1 . . . . . . . . . . . . . . Retrieve Matter 1 | . 1 . . . . . . . . . . . . . . Scanalyzer 8 | . . . . . 6 . 2 . . . . . . . . Insert Component 4 | . . . . . 3 . 1 . . . . . . . . Analyze 4 | . . . . . 3 . 1 . . . . . . . . Garrison Access Hacks 1 | . . . . . 1 . . . . . . . . . . Seal Access 1 | . . . . . 1 . . . . . . . . . . Unauthorized Hacks 4 | . 3 . . . . . . . . . . . . 1 . Terminals 4 | . 3 . . . . . . . . . . . . 1 . Track 3 | . 3 . . . . . . . . . . . . . . Assimilate 1 | . . . . . . . . . . . . . . 1 . Fabricators . | . . . . . . . . . . . . . . . . Repair Stations . | . . . . . . . . . . . . . . . . Recycling Units . | . . . . . . . . . . . . . . . . Scanalyzers . | . . . . . . . . . . . . . . . . Garrison Access . | . . . . . . . . . . . . . . . . Data Cores Recovered 1 | . . . . . . . . . . . . . . 1 . Used 1 | . . . . . . . . . . . . . . 1 . Hacking Detections 20 | . 2 . . . 6 3 2 3 . . . 1 . 2 1 Full Trace Events 5 | . . . . . 3 . 1 . . . . 1 . . . Feedback Events . | . . . . . . . . . . . . . . . . Feedback Blocked . | . . . . . . . . . . . . . . . . Robot Schematics Acquired 5 | . . . . . . . . . . 5 . . . . . Robots Built 1 | . . . . . . . . . . . . . . 1 . Matter 285 | . . . . . . . . . . . . . . 285 . Time 76 | . . . . . . . . . . . . . . 76 . Total Robot Build Rating 5 | . . . . . . . . . . . . . . 5 . Part Schematics Acquired 17 | . 2 . . . 3 . 1 . . 11 . . . . . Parts Built 4 | . . . . . . . . 4 . . . . . . . Matter 380 | . . . . . . . . 380 . . . . . . . Time 190 | . . . . . . . . 190 . . . . . . . Total Part Build Rating 20 | . . . . . . . . 20 . . . . . . . Parts Repaired 6 | . . . . . 2 . 1 . . . . 2 . . 1 Time 211 | . . . . . 100 . 19 . . . . 76 . . 16 Parts Recycled . | . . . . . . . . . . . . . . . . Recycled Matter 220 | . 220 . . . . . . . . . . . . . . Retrieved Matter 220 | . 220 . . . . . . . . . . . . . . Retrieved Components . | . . . . . . . . . . . . . . . . Parts Scanalyzed 4 | . . . . . 3 . 1 . . . . . . . . Part Schematics Acquired 4 | . . . . . 3 . 1 . . . . . . . . Parts Damaged . | . . . . . . . . . . . . . . . . Bothacking | -11 -10 -10 -10 -9 -8 -8 -7 -6 -6 -6 -5 -5 -4 -3 -3 ------------ Run | Scr Mat Min Exi Min Mat Sto Fac Fac Low Dat Pro Fac Fac Res Arm Used RIF Installer . | . . . . . . . . . . . . . . . . Robots Hacked . | . . . . . . . . . . . . . . . . Non-combat . | . . . . . . . . . . . . . . . . Combat . | . . . . . . . . . . . . . . . . Robot Hacks Applied . | . . . . . . . . . . . . . . . . Relay Couplers Released . | . . . . . . . . . . . . . . . . Robots Rewired . | . . . . . . . . . . . . . . . . Allies Hacked . | . . . . . . . . . . . . . . . . Hacks Repelled . | . . . . . . . . . . . . . . . . Allies | -11 -10 -10 -10 -9 -8 -8 -7 -6 -6 -6 -5 -5 -4 -3 -3 -------- Run | Scr Mat Min Exi Min Mat Sto Fac Fac Low Dat Pro Fac Fac Res Arm Total Allies 6 | . . . . 2 . 2 . . . . 1 . . 1 . Largest Group 2 | . . . . 2 . 2 . . . . 1 . . 1 . Highest-Rated Group 94 | . . . . 43 . 62 . . . . 94 . . 23 . Highest-Rated Ally 94 | . . . . 31 . 31 . . . . 94 . . 23 . Total Orders 4 | . . . . . . 3 . . . . . . . 1 . ROAM 1 | . . . . . . 1 . . . . . . . . . FOLLOW 1 | . . . . . . 1 . . . . . . . . . PICKUP 1 | . . . . . . . . . . . . . . 1 . EXPLORE 1 | . . . . . . 1 . . . . . . . . . Ally Attacks 26 | . . . . 8 . 14 . . . . 4 . . . . Total Damage 388 | . . . . 64 . 188 . . . . 136 . . . . Kills 4 | . . . . 2 . . . . . . 2 . . . . Allies Corrupted 2 | . . . . . . 1 . . . . . . . 1 . Allies Melted . | . . . . . . . . . . . . . . . . Intel | -11 -10 -10 -10 -9 -8 -8 -7 -6 -6 -6 -5 -5 -4 -3 -3 ------- Run | Scr Mat Min Exi Min Mat Sto Fac Fac Low Dat Pro Fac Fac Res Arm Robot Analysis Total . | . . . . . . . . . . . . . . . . Derelict Logs Recovered 1 | . . 1 . . . . . . . . . . . . . Drone Launches 2 | . . . . . . 2 . . . . . . . . . Drone Recoveries . | . . . . . . . . . . . . . . . . Exploration | -11 -10 -10 -10 -9 -8 -8 -7 -6 -6 -6 -5 -5 -4 -3 -3 ------------- Run | Scr Mat Min Exi Min Mat Sto Fac Fac Low Dat Pro Fac Fac Res Arm Turns Passed 8764 | 72 842 710 310 177 2355 874 731 816 226 62 240 277 133 586 353 Spaces Moved 5778 | 60 539 514 239 104 1054 344 319 816 306 92 338 217 132 520 184 Core 6 | 5 . . . . . 1 . . . . . . . . . Treads 1072 | 3 . . . 5 375 343 319 27 . . . . . . . Legs . | . . . . . . . . . . . . . . . . Wheels 2122 | 52 539 514 239 99 679 . . . . . . . . . . Hover 2578 | . . . . . . . . 789 306 92 338 217 132 520 184 Flight . | . . . . . . . . . . . . . . . . Fastest Speed 50 | 50 100 130 130 130 140 197 165 53 68 68 68 68 68 68 68 Average Speed 115 | 98 126 130 130 133 161 201 192 68 68 68 68 68 68 68 77 Slowest Speed 1500 | 160 130 130 130 210 205 1500 225 165 68 68 68 68 68 68 220 Overloaded Moves . | . . . . . . . . . . . . . . . . Propulsion Burnouts . | . . . . . . . . . . . . . . . . Robots Hopped . | . . . . . . . . . . . . . . . . Cave-ins Triggered . | . . . . . . . . . . . . . . . . Exploration Rate (%) 41 | 4 83 94 62 25 80 50 12 28 46 74 61 8 4 18 12 Regions Visited 15 Branch Regions 8 Pre-discovered Areas 1 | . . . . . . . . . . 1 . . . . . Known Exits Taken 9 | . . . . . 1 . 1 1 1 1 1 1 1 1 . Unknown Exits Taken 6 | 1 1 1 1 1 . 1 . . . . . . . . . Scrap Searched 3 | . . 1 . . . . . . 1 . 1 . . . . Spaces Dug 43 | . . . . . . . 2 9 . . . 16 4 11 1 Terrain Destroyed 133 | . . . . 3 10 . 2 28 39 . . 16 23 11 1 Melee 43 | . . . . . . . 2 9 . . . 16 4 11 1 Projectile 5 | . . . . 3 2 . . . . . . . . . . AOE 85 | . . . . . 8 . . 19 39 . . . 19 . . Actions | -11 -10 -10 -10 -9 -8 -8 -7 -6 -6 -6 -5 -5 -4 -3 -3 --------- Run | Scr Mat Min Exi Min Mat Sto Fac Fac Low Dat Pro Fac Fac Res Arm Total 7302 | 69 629 552 238 120 1548 504 420 1046 314 91 345 319 152 663 292 Wait 790 | . 30 30 . 2 259 84 49 161 . . 3 73 1 67 31 Move 5763 | 59 538 513 238 103 1053 343 318 815 305 91 337 216 131 519 184 Hop . | . . . . . . . . . . . . . . . . Pick Up 105 | 4 13 5 . 2 35 4 6 15 . . 1 5 3 9 3 Fast Attach 57 | 6 2 . . . 12 12 2 . . . 1 1 2 8 11 Attach 52 | . 2 . . 1 10 . 3 14 2 . . 3 2 4 11 Detach 1 | . . . . . . . . 1 . . . . . . . Swap 25 | . 2 1 . . 6 1 6 4 . . 1 . 1 3 . Drop 89 | . 7 1 . 1 28 16 6 16 . . 1 3 . 9 1 Fire 288 | . 35 2 . 11 144 43 25 11 4 . . 1 7 2 3 Melee 129 | . . . . . . . 4 9 3 . 1 17 5 42 48 Ram . | . . . . . . . . . . . . . . . . Kick . | . . . . . . . . . . . . . . . . Crush 3 | . . . . . 1 1 1 . . . . . . . . Escape Stasis . | . . . . . . . . . . . . . . . . Rewire . | . . . . . . . . . . . . . . . . Trap . | . . . . . . . . . . . . . . . . Miscellaneous . | . . . . . . . . . . . . . . . . Route ------- -11/Scrapyard -10/Materials (discovered 3 exits: [*Mat x2] / *Min) -10/Mines (discovered 2 exits: [*Mat] / *Exi) -10/Exiles -9/Mines -8/Materials (discovered 4 exits: *Fac x2 / *Sto x2) -8/Storage -7/Factory -6/Factory (discovered 2 exits: *Fac / *Low) -6/Lower Caves -6/Data Miner -5/Proximity Caves -5/Factory -4/Factory -3/Research (discovered 5 exits: Res x3 / *Arm / *Qua) -3/Armory History --------- Turn | Location | Event 3 | -11/Scrapyard | Discovered new exit (range 16) 73 | -11/Scrapyard | Entered Materials 212 | -10/Materials | Discovered new exit (range 10) 313 | -10/Materials | Build established: Mutant 504 | -10/Materials | Discovered new exit (range 10) 581 | -10/Materials | Discovered new exit (range 6) 915 | -10/Materials | Entered Mines 1149 | -10/Mines | Discovered new exit (range 13) 1300 | -10/Mines | Met a Derelict shopkeep closing up shop 1413 | -10/Mines | Found a hidden stash of uninstalled traps 1617 | -10/Mines | Deemed a non-threat by the Exiles lab entrance 1618 | -10/Mines | Discovered new exit (range 5) 1625 | -10/Mines | Entered Exiles 1625 | -10/Exiles | Found Exiles lab abandoned 1923 | -10/Exiles | Discovered new exit (range 10) 1935 | -10/Exiles | Entered Mines 1936 | -9/Mines | Assembled infested the area 2091 | -9/Mines | Discovered new exit (range 10) 2112 | -9/Mines | Entered Materials 2112 | -8/Materials | Evolved 4 slots: Utility x4 2113 | -8/Materials | Identified exit to Storage 2203 | -8/Materials | Discovered exit to Storage (range 13) 2426 | -8/Materials | Build established: Hauler-Mutant 2901 | -8/Materials | Discovered new exit (range 3) 3406 | -8/Materials | Discovered new exit (range 4) 3711 | -8/Materials | Repaired Cmb. Airjet 3746 | -8/Materials | Core integrity fell below 50% 3762 | -8/Materials | Repaired Cmb. Airjet 4467 | -8/Materials | Entered Storage 5264 | -8/Storage | Discovered new exit (range 16) 5296 | -8/Storage | Met a pair of Derelict thieves 5341 | -8/Storage | Entered Factory 5341 | -7/Factory | Evolved 2 slots: Utility x2 5815 | -7/Factory | Repaired Adv. Treads 5962 | -7/Factory | Discovered new exit (range 5) 5975 | -7/Factory | Identified exit to Factory 6072 | -7/Factory | Entered another Factory area 6072 | -6/Factory | Evolved 2 slots: Propulsion x2 6173 | -6/Factory | Discovered new exit (range 8) 6182 | -6/Factory | Identified exit to Factory 6369 | -6/Factory | Fabricated Cmb. Airjet? 6516 | -6/Factory | Fabricated Cmb. Airjet (x2) 6562 | -6/Factory | Build established: Hacker-Mutant 6860 | -6/Factory | Discovered new exit (range 14) 6887 | -6/Factory | Identified exit to Lower Caves 6888 | -6/Factory | Entered Lower Caves 6890 | -6/Lower Caves | Attracted the attention of an 0b10 checkpoint 6900 | -6/Lower Caves | Spotted B-75 Beast 6939 | -6/Lower Caves | Encountered a Warlord checkpoint 7038 | -6/Lower Caves | Build established: Infiltrator-Mutant 7112 | -6/Lower Caves | A Derelict revealed a hidden shortcut to meet someone special 7114 | -6/Lower Caves | Identified exit to Data Miner 7114 | -6/Lower Caves | Entered Data Miner 7114 | -6/Data Miner | Discovered new exit (range 6) 7120 | -6/Data Miner | Identified exit to Proximity Caves 7129 | -6/Data Miner | Met Data Miner 7149 | -6/Data Miner | Learned location of Section 7 (-3) 7149 | -6/Data Miner | Acquired the access code to Warlord's prototype stash 7161 | -6/Data Miner | Received God Mode back door access code from Data Miner 7176 | -6/Data Miner | Entered Proximity Caves 7178 | -5/Proximity Caves | Attracted the attention of an 0b10 checkpoint 7325 | -5/Proximity Caves | Acquired the password to a Derelict Tinkerer's latest research 7331 | -5/Proximity Caves | Found Prototype Special Weapon 7363 | -5/Proximity Caves | Escorted by Enhanced Grunt 7412 | -5/Proximity Caves | Discovered exit to Factory (range 5) 7416 | -5/Proximity Caves | Entered Factory 7416 | -5/Factory | Evolved 2 slots: Utility x1, Weapon x1 7422 | -5/Factory | Identified Molecular Deconstructor 7602 | -5/Factory | Repaired Imp. ECM Suite 7641 | -5/Factory | Repaired Imp. Propulsion Shielding 7665 | -5/Factory | Discovered new exit (range 15) 7692 | -5/Factory | Identified exit to Factory 7693 | -5/Factory | Entered another Factory area 7693 | -4/Factory | Evolved 2 slots: Utility x1, Weapon x1 7704 | -4/Factory | Lost 3 parts (3u) 7740 | -4/Factory | Discovered new exit (range 9) 7826 | -4/Factory | Identified exit to Research 7826 | -4/Factory | Entered Research 7826 | -3/Research | Evolved 2 slots: Utility x2 7837 | -3/Research | Lost 3 parts (1u2w) 7856 | -3/Research | Identified exit to Research 7994 | -3/Research | Found Enh. Force Lance 8072 | -3/Research | Build established: Hacker-Mutant 8114 | -3/Research | Fabricated A-15 Conveyor? 8271 | -3/Research | Discovered new exit (range 21) 8277 | -3/Research | Discovered new exit (range 6) 8297 | -3/Research | Identified exit to Quarantine 8310 | -3/Research | Identified exit to Armory 8315 | -3/Research | Found Prototype Device 8315 | -3/Research | Identified Exp. Thermal Shield 8412 | -3/Research | Entered Armory 8532 | -3/Armory | Repaired Cmb. Airjet 8663 | -3/Armory | Lost 4 parts (1p2n1u) 8685 | -3/Armory | Core integrity fell below 50% 8740 | -3/Armory | Core integrity fell below 20% 8765 | -3/Armory | Destroyed by P-80 Master with Gamma Rifle Last Messages --------------- 08726_ Slug penetrates Wall. 08731_ Penetrated by Slug. 08733_ Acquired Lgt. Particle Reactor. 08736_ Sml. Battery destroyed. 08736_ Slug penetrates Wall. 08736_ Penetrated by Slug. 08742_ Slug penetrates Wall. 08743_ UO6C %VBGZY/N0QV WLZT#77 08744_ Gyrokinetic Inverter destroyed. 08747_ Slug penetrates Wall. 08747_ Penetrated by Slug. 08749_ L-61 Swordsman destroyed. 08754_ Penetrated by Slug. 08754_ Lgt. Particle Reactor destroyed. 08754_ Slug penetrates Wall. 08758_ Adv. Target Analyzer destroyed. 08758_ Penetrated by Slug. 08759_ Acquired 40 matter. 08762_ Knocked back. 08763_ System corrupted: Energy discharge (-30). Map ----- +----------------------------------------------------+ | | | | | | | | | | | | | | | | | | | | | | | | | | | | | | | | | | | | | | | | | | | | | | | | | ?????????????????????##################??????????? | | ?????????????????????#|!=@ #??????????? | | ?????????????????????#==x[ #??????????? | | ?????????????????????#%%pY! #??????????? | | ???????????????#######x""" #??????????? | | ???????????????#%!=]!p%"F" """" """" #??????????? | | ???????????????#=#####!" """" """" #??????????? | | ?????????????????????#!""" """" """" #??????????? | | ?????????????????????#h""" """" """" #??????????? | | ?????????????????????#!* #??????????? | | ???????????????????###########+############### | | ???????????" / "%" | | | ???????????????# " | | ???????????????##+##+###################=##### | | ??????????????????????????????????????## #???????? | | ??????????????????????????#############=%#?##????? | | ??????????????????????????# %*[#[# ##??? | | ??????????????????????????# ! =! [ ##?? | | ??????????????????????????# """ ! #?# | | ?????????????????????????## """ # | | ?????????????????????????# ! ### # # | | ?????????????????????????##[%= ! | | ??????????????????????????# "" | | ??????????????????????????#""" ! % # # | | ??????????????????????????#"R = ## """ | | ??????????????????????????#""" # Y" # | +----------------------------------------------------+ Best States ------------- Heat Dissipation 55 Coolant Potential 100 Energy Generation 23 Energy Capacity 310 Matter Stores 300 Matter Capacity 300 Sight Range 22 Terrain Scan Range 24 Terrain Scan Density 110 ECM Strength 2 Jamming Range 12 Armor Coverage 225 Resistance: KI 20 Resistance: TH 50 Resistance: EX 20 Resistance: EM 20 Resistance: I 20 Resistance: S 20 Resistance: P 20 Propulsion Shielding 66 Weapon Shielding 66 Weapon Cycling 30 Evasion (%) 54 Melee Accuracy 18 Target Analysis 8 Recoil Reduction 2 Offensive Hacking 30 Item Schematics ----------------- Lrg. Storage Unit | -10/Materials | Hacked Hcp. Storage Unit | -10/Materials | Hacked Cmb. Airjet | -8/Materials | Scanalyzed Imp. Propulsion Shielding | -8/Materials | Scanalyzed Aerolev Unit | -8/Materials | Scanalyzed Hacking Suite | -7/Factory | Scanalyzed Combat Drone Bay | -6/Data Miner | Free Lgt. Regenerative Plating | -6/Data Miner | Free Cmb. Gravmag System | -6/Data Miner | Free Exp. Cesium-ion Thruster | -6/Data Miner | Free Exp. Sensor Array | -6/Data Miner | Free Exp. Targeting Computer | -6/Data Miner | Free Tactical Coordination Suite | -6/Data Miner | Free Exp. Transmission Jammer | -6/Data Miner | Free Mni. Smartbomb Launcher | -6/Data Miner | Free Plasma Sword | -6/Data Miner | Free Kinetic Spear | -6/Data Miner | Free Robot Schematics ------------------ S-27 Virus | -6/Data Miner | Free G-50 Soldier | -6/Data Miner | Free G-67 Veteran | -6/Data Miner | Free I-36 Angel | -6/Data Miner | Free I-47 Archangel | -6/Data Miner | Free Fabricated ------------ Cmb. Airjet | x2 | -6/Factory Cmb. Airjet | x2 | -6/Factory A-15 Conveyor | x1 | -3/Research | Preloaded Alien Tech Used ----------------- None Achievements -------------- Deconstruction I Survived The Infestation My Command Is Your Wish Oh No You Don't! The Oracle Challenges ------------ None Game ------ Seed IonBattleNanoactuators Manual? 0 Play Time 01:38:52 Cumulative 31.1 hours Start 2020.04.24 @ 20:40:31 End 2020.04.24 @ 22:47:40 Sessions 1 Manual Loads 0 Difficulty Adventurer Special Mode None Game No. 12 Rogue 2 Adventurer 10 Explorer 0 Win Type - Total 0 Types 0/0/0/0/0/0/0 Lore% 18 Gallery% 30 Achievement% 28 Wizard Run 0 Options --------- ASCII 0 Keyboard 0 Movement Numpad Keybinds 0 Fullscreen 1 Font 18/SmallcapsGlow Map View 76x50 Tactical HUD 1 Map Filters NONE Filters NONE Steam 0 RUN: b3c84bd3-f34a-4812-b0cc-88638c5ddc0f